[Event "Italian-ch Juniors U20 2022"]
[Site "Cagliari"]
[Date "2022.11.17"]
[Round "1.1"]
[White "Cappelletto, Joshuaede"]
[Black "Hercegovac, Neven"]
[Result "0-1"]
[ECO "A33"]
[WhiteElo "2265"]
[BlackElo "2230"]
[Annotator "TA"]
[PlyCount "78"]
[EventDate "2022.11.17"]
[EventType "tourn"]
[EventCountry "ITA"]
[SourceTitle "playchess.com"]
[Source "ChessBase"]
[SourceQuality "1"]
[TimeControl "40/6000+30:20/3000:900+30"]

{[%evp 12,78,0,0,0,0,18,0,8,0,12,20,14,19,30,22,35,50,83,80,81,64,88,93,89,85,73,78,85,-289,-283,-2147,-2127,-1879,-1879,-1241,-604,-1211,-1181,-29972,-29974,-5589,-714,-802,-445,-443,-275,-262,-256,-262,-260,-259,-256,-245,-221,-506,-507,-781,-752,-664,-585,-912,-793,-1169,-1130,-1145,-987,-1628,-908]} 1. c4 {[%emt 0:00:27] Le Quang Liem} c5 {[%emt 0:00:26]} 2. Nf3 {[%emt 0:00:06]} Nc6 {[%emt 0:00:05]} 3. d4 {[%emt 0:00:25]} cxd4 {[%emt 0:00:07]} 4. Nxd4 {[%emt 0:00:06]} Nf6 {[%emt 0:00:06]} 5. Nc3 {[%emt 0:00:03]} e6 {[%emt 0:00:29]} 6. a3 {[%emt 0:02:01]} Be7 {[%emt 0:00:34]} 7. e4 {[%emt 0:03:11]} O-O {[%emt 0:00:11] A33: Symmetrical English: 2 Nf3 Nf6 3 d4 cxd4 4 Nxd4 e6 5 Nc3 Nc6.} 8. Nf3 {[%emt 0:01:46]} b6 {[%emt 0:07:02]} 9. Be2 {[%emt 0:02:18]} Bb7 {[%emt 0:01:01] The position is equal.} 10. O-O {[%emt 0:00:19]} Rc8 {[%emt 0:02:07]} 11. Bf4 {[%emt 0:12:00]} Na5 {[%emt 0:15:33]} 12. Nd2 {[%emt 0:06:55]} d5 {[%emt 0:07:29]} 13. cxd5 {[%emt 0:02:29]} exd5 {[%emt 0:00:47]} 14. e5 {[%emt 0:01:47]} Ne4 {[%emt 0:03:55]} 15. Ncxe4 {[%emt 0:11:19]} dxe4 {[%emt 0:00:12]} 16. b4 {[%emt 0:05:24]} Bg5 {[%emt 0:42:10]} 17. Bxg5 {[%emt 0:28:46]} Qxg5 {[%emt 0:00:05]} 18. h4 $1 {[%emt 0:00:06]} (18. bxa5 $6 Rcd8 $11) 18... Qxh4 {[%emt 0:04:18]} 19. bxa5 {[%emt 0:00:10] Black must now prevent Nc4.} Rc6 {[%emt 0:00:30] [#]} 20. g3 $146 {[%emt 0:30:52][%mdl 8192] [#] White does not recover from this.} (20. Nxe4 $1 $16 {Threatens to win with Nd6.} Rh6 21. f3) ({Predecessor:} 20. Nxe4 Rh6 21. f3 Bxe4 22. fxe4 Rd8 23. Qb3 Qh2+ 24. Kf2 Qxe5 25. Rad1 Re8 26. axb6 Qxe4 27. Kg1 Qe7 28. Rxf7 Qc5+ 29. Rf2+ Kh8 30. Qb5 Qe3 31. Rd3 {1-0 (31) Le,Q (2647)-Bu,X (2673) Moscow 2010 CBM 135 [Le Quang Liem]}) 20... Rg6 $19 {[%emt 0:00:25] Strongly threatening ...Qh3.} 21. Kg2 {[%emt 0:12:35] Prevents Qh3+.} ({But not} 21. Qa4 $2 Qh3 22. Bh5 e3 $19) (21. a6 e3 22. Bf3 (22. axb7 $2 exf2+ 23. Rxf2 Qxg3+ 24. Kh1 Qxf2 $19)) 21... e3+ $1 {[%emt 0:10:40][%mdl 64] Discovered Attack} 22. Nf3 {[%emt 0:08:27]} exf2 {[%emt 0:00:31]} 23. Kxf2 {[%emt 0:00:12]} Qxg3+ {[%emt 0:01:13]} 24. Ke3 {[%emt 0:00:03]} Bxf3 {[%emt 0:02:24]} 25. Bxf3 {[%emt 0:00:28]} Qxe5+ {[%emt 0:00:25]} 26. Be4 {[%emt 0:00:10]} Qc3+ {[%emt 0:02:15]} (26... Re8 $142 27. Qd3 Rg4) 27. Ke2 {[%emt 0:09:01]} Re6 {[%emt 0:02:58]} 28. Qd3 {[%emt 0:00:18]} Qxd3+ {[%emt 0:01:25]} 29. Kxd3 {[%emt 0:00:05]} Rd8+ {[%emt 0:00:06]} 30. Ke3 {[%emt 0:00:03]} Rde8 {[%emt 0:00:11]} ({Stronger than} 30... bxa5 31. Rac1 $15) 31. Rf4 {[%emt 0:00:04]} f5 $1 {[%emt 0:00:08][%mdl 64] Deflection} ({And not} 31... bxa5 32. Kd4 $15) 32. Rxf5 {[%emt 0:00:04]} Rxe4+ {[%emt 0:00:05][%mdl 4096] Endgame KRR-KRR} 33. Kd3 $2 {[%emt 0:00:05]} (33. Kf3) 33... R4e5 {[%emt 0:07:07] Black is clearly winning.} 34. Rxe5 {[%emt 0:00:07]} (34. Rf4 $142 Rxa5 35. Rh4) 34... Rxe5 {[%emt 0:00:02]} 35. axb6 {[%emt 0:00:06]} axb6 {[%emt 0:00:06][%cal Ba7b6,Bb6b5][%mdl 32] KR-KR} 36. Rb1 {[%emt 0:00:02]} b5 {[%emt 0:00:44] ...h5 is the strong threat.} 37. Kc3 {[%emt 0:00:08]} h5 {[%emt 0:00:12][%cal Bh7h5,Bh5h4,Bh4h3][%mdl 32]} 38. Kb4 {[%emt 0:00:14]} h4 {[%emt 0:00:08]} 39. Ka5 {[%emt 0:00:06]} h3 {[%emt 0:00:12] Weighted Error Value: White=0.95/Black=0.56} 0-1

[Event "Italian-ch Juniors U20 2022"]
[Site "Cagliari"]
[Date "2022.11.17"]
[Round "1.2"]
[White "Lumachi, Gabriele"]
[Black "Orfini, Nicolo`"]
[Result "1/2-1/2"]
[ECO "A30"]
[WhiteElo "2394"]
[BlackElo "2227"]
[Annotator "TA"]
[PlyCount "93"]
[EventDate "2022.11.17"]
[EventType "tourn"]
[EventCountry "ITA"]
[SourceTitle "playchess.com"]
[Source "ChessBase"]
[SourceQuality "1"]
[TimeControl "40/6000+30:20/3000:900+30"]

{[%evp 21,93,21,37,35,40,34,38,19,25,30,36,13,21,8,7,7,59,39,41,33,30,30,36,26,27,29,30,3,7,0,0,0,10,-5,-22,-56,-43,-142,0,0,0,0,8,0,6,0,0,0,0,0,0,0,0,0,0,0,0,0,0,0,0,0,0,0,0,0,0,0,0,0,0,0,0,0]} 1. Nf3 {[%emt 0:00:05]} c5 {[%emt 0:00:45]} 2. b3 {[%emt 0:00:30]} Nf6 {[%emt 0:00:30]} 3. Bb2 {[%emt 0:00:30]} e6 {[%emt 0:00:30]} 4. c4 {[%emt 0:00:30]} b6 {[%emt 0:00:30]} 5. g3 {[%emt 0:00:30]} Bb7 {[%emt 0:00:30]} 6. Bg2 {[%emt 0:00:30]} Bc8 {[%emt 0:04:31]} 7. Bf1 {[%emt 0:03:40]} Bb7 {[%emt 0:00:05]} 8. Bg2 {[%emt 0:00:17]} Be7 {[%emt 0:02:20]} 9. O-O {[%emt 0:00:10]} d6 {[%emt 0:09:27]} 10. d4 {[%emt 0:02:09]} O-O {[%emt 0:04:53]} 11. Nc3 {[%emt 0:00:48]} Ne4 {[%emt 0:07:20]} 12. Qc2 {[%emt 0:10:46] A30: Symmetrical English: Double Fianchetto and Hedgehog.} Nxc3 {[%emt 0:03:27]} 13. Qxc3 {[%emt 0:00:45]} Bf6 {[%emt 0:02:23]} 14. Qd2 {[%emt 0:08:21] White is slightly better.} Qe7 {[%emt 0:07:35]} 15. Rad1 {[%emt 0:06:35]} Nd7 {[%emt 0:21:16]} 16. dxc5 {[%emt 0:05:12]} Bxb2 {[%emt 0:00:06]} 17. c6 {[%emt 0:00:07]} Bxc6 {[%emt 0:00:12] [#] Hoping for ...Ba3.} 18. Qxb2 {[%emt 0:00:12] [#]} Bxf3 $146 {[%emt 0:07:43]} (18... Nf6 $11) ({Predecessor:} 18... Nf6 19. Nh4 Bxg2 20. Nxg2 {½-½ (18) Speelman,J (2511)-Werle,J (2552) London 2007}) 19. Bxf3 {[%emt 0:08:46]} Rad8 {[%emt 0:00:08]} 20. Qa3 {[%emt 0:00:15]} Ne5 {[%emt 0:00:13]} 21. Bg2 {[%emt 0:01:47]} Qc7 {[%emt 0:01:28]} 22. Rd2 {[%emt 0:01:20]} Rd7 {[%emt 0:00:25]} 23. h3 {[%emt 0:06:25]} Rfd8 {[%emt 0:02:34]} 24. f4 {[%emt 0:19:27]} Qc5+ {[%emt 0:01:58]} 25. Qxc5 {[%emt 0:00:07]} dxc5 {[%emt 0:00:04]} 26. Rxd7 {[%emt 0:04:08]} Nxd7 $11 {[%emt 0:00:07][%mdl 4096] Endgame KRB-KRN} 27. g4 {[%emt 0:00:23]} Nf8 {[%emt 0:04:15]} 28. e3 {[%emt 0:09:34]} Rd3 {[%emt 0:03:24]} 29. Rf3 {[%emt 0:00:06]} (29. Re1 $15) 29... Rd2 {[%emt 0:00:08]} (29... Ng6 $17 {Strongly threatening ...Nh4.} 30. Rf1 Rxe3) 30. Rf2 {[%emt 0:00:31] The position is equal.} Rxf2 {[%emt 0:04:40]} 31. Kxf2 {[%emt 0:00:11] KB-KN} f6 {[%emt 0:05:06]} 32. h4 {[%emt 0:11:39]} g6 {[%emt 0:01:03]} 33. h5 {[%emt 0:02:40]} gxh5 {[%emt 0:01:41]} 34. gxh5 {[%emt 0:00:05]} f5 {[%emt 0:02:04]} 35. e4 {[%emt 0:02:40]} Kg7 {[%emt 0:00:07]} 36. e5 {[%emt 0:00:50]} h6 {[%emt 0:00:36]} 37. a3 {[%emt 0:03:40]} a5 {[%emt 0:00:53]} 38. Ke3 {[%emt 0:00:39]} Nd7 {[%emt 0:00:38]} 39. Bc6 {[%emt 0:01:07]} Nb8 {[%emt 0:00:05]} 40. Bb5 {[%emt 0:00:45]} Kf7 {[%emt 0:00:05]} 41. Kd3 {[%emt 0:49:49]} Ke7 {[%emt 0:49:03]} 42. Kc3 {[%emt 0:00:33]} Kd8 {[%emt 0:00:00]} 43. b4 {[%emt 0:00:00]} Kc7 {[%emt 0:00:00]} 44. bxc5 {[%emt 0:00:00]} bxc5 {[%emt 0:00:00]} 45. Kb3 {[%emt 0:00:00] aiming for Ka4.} Nc6 {[%emt 0:00:00]} 46. Bxc6 {[%emt 0:00:00]} Kxc6 {[%emt 0:00:00]} 47. a4 {[%emt 0:00:00] Weighted Error Value: White=0.08 (flawless) /Black=0.08 (flawless)} 1/2-1/2

[Event "Italian-ch Juniors U20 2022"]
[Site "Cagliari"]
[Date "2022.11.17"]
[Round "1.3"]
[White "Rindone, Andrea"]
[Black "Bin-Suhayl, Ieysaa"]
[Result "0-1"]
[ECO "A13"]
[WhiteElo "2104"]
[BlackElo "2230"]
[Annotator "TA"]
[PlyCount "93"]
[EventDate "2022.11.17"]
[EventType "tourn"]
[EventCountry "ITA"]
[SourceTitle "playchess.com"]
[Source "ChessBase"]
[SourceQuality "1"]
[TimeControl "40/6000+30:20/3000:900+30"]

{[%evp 9,93,-17,-2,-16,-11,-13,0,-6,0,0,12,-10,-2,-16,-10,-14,-12,-13,-20,-25,-35,-27,-20,-26,-20,-18,0,0,0,0,0,0,0,0,43,0,33,35,65,0,6,6,6,6,6,6,6,6,6,6,6,6,24,0,15,0,0,-6295,-5365,-29974,-29975,-29973,-29972,-29972,-29973,-29973,-29974,-29972,-29973,-29973,-29973,-29980,-29981,-29984,-29985,-29990,-29991,-29991,-29992,-29992,-29993,-29993,-29994,-29994,-29991,-29991]} 1. Nf3 {[%emt 0:00:28]} d5 {[%emt 0:03:12]} 2. c4 {[%emt 0:00:30]} e6 {[%emt 0:00:30]} 3. b3 {[%emt 0:00:30]} d4 {[%emt 0:00:30]} 4. e3 {[%emt 0:00:30]} c5 {[%emt 0:00:30]} 5. exd4 {[%emt 0:00:30]} cxd4 {[%emt 0:00:30]} ({Don't do} 5... Nc6 6. dxc5 Bxc5 7. Bb2 $14) 6. g3 {[%emt 0:00:30] A13: English Opening: 1...e6.} Nc6 {[%emt 0:00:30]} 7. Bg2 {[%emt 0:00:30]} Nf6 {[%emt 0:00:30]} 8. O-O {[%emt 0:00:30] The position is equal.} Be7 {[%emt 0:00:30]} 9. d3 {[%emt 0:00:30]} O-O {[%emt 0:00:30]} 10. Re1 {[%emt 0:00:30]} Re8 {[%emt 0:00:30] The modern move.} 11. Ne5 {[%emt 0:00:30]} Nxe5 {[%emt 0:00:30]} 12. Rxe5 {[%emt 0:00:30]} Qc7 {[%emt 0:00:30]} 13. Re1 {[%emt 0:00:30]} e5 {[%emt 0:00:30] [#]} 14. Nd2 $146 {[%emt 0:00:30]} ({Predecessor:} 14. Ba3 Bxa3 15. Nxa3 Bd7 16. Qd2 Bc6 17. Re2 Re6 18. Rae1 Rae8 19. Nc2 b6 20. b4 {½-½ (81) Gjestemoen Vonhirsch,A (2236)-Mitusov,S (2369) Stavanger 2022}) 14... Bg4 {[%emt 0:00:30]} 15. Bf3 {[%emt 0:00:30]} Bf5 {[%emt 0:00:30]} 16. Ne4 {[%emt 0:00:30]} Bxe4 {[%emt 0:00:30]} 17. Bxe4 {[%emt 0:00:30]} Bb4 {[%emt 0:00:30]} 18. Bd2 {[%emt 0:00:30]} Bxd2 {[%emt 0:00:30]} 19. Qxd2 {[%emt 0:00:30]} Nxe4 {[%emt 0:00:30]} 20. Rxe4 {[%emt 1:41:02]} f5 21. Re2 {[%emt 0:00:00]} Re6 {[%emt 1:21:28]} 22. Rae1 {[%emt 0:00:00]} Rae8 {[%emt 0:04:14]} 23. f4 {[%emt 0:00:00]} h6 {[%emt 0:01:52]} 24. fxe5 {[%emt 0:00:00]} (24. Kf2 $14) 24... Rxe5 {[%emt 0:09:56]} 25. Qf4 {[%emt 0:00:00][%cal Re2e5]} Rxe2 {[%emt 0:03:18]} 26. Rxe2 {[%emt 0:00:00]} Qxf4 {[%emt 0:00:10]} 27. Rxe8+ {[%emt 0:00:00]} Kf7 {[%emt 0:00:02]} 28. gxf4 {[%emt 0:00:00] [#] Intending Rb8 and mate.} Kxe8 $11 {[%emt 0:00:01][%mdl 4096] Endgame KP-KP} 29. b4 {[%emt 0:00:00]} Kd7 {[%emt 0:03:26]} 30. Kf2 {[%emt 0:00:00]} a6 {[%emt 0:00:53]} 31. a4 {[%emt 0:00:00]} Kc6 {[%emt 0:01:13]} 32. Kg3 {[%emt 0:00:00]} a5 {[%emt 0:00:30]} 33. b5+ {[%emt 0:00:00][%mdl 8192]} (33. bxa5 $11 Kc5 34. h4) 33... Kc5 $19 {[%emt 0:00:04] ( -> ...Kb4)} 34. h4 {[%emt 0:00:00]} h5 {[%emt 0:00:56] Black mates.} ({Don't blunder} 34... Kb4 $2 35. h5 Kxa4 36. Kf3 $19) 35. Kf3 {[%emt 0:00:00]} Kb4 {[%emt 0:00:03]} 36. Ke2 {[%emt 0:00:00]} Kxa4 {[%emt 0:01:29]} 37. Kd2 {[%emt 0:00:00]} Kb4 {[%emt 0:00:00]} 38. Kc2 {[%emt 0:00:00]} b6 {[%emt 0:00:00]} 39. Kb2 {[%emt 0:00:00]} a4 {[%emt 0:00:00][%cal Ba5a4,Ba4a3][%mdl 32]} 40. Ka2 {[%emt 0:00:00]} a3 {[%emt 0:00:10]} 41. Kb1 {[%emt 0:11:36] [#]} g5 $1 {[%emt 0:49:35]} 42. hxg5 {[%emt 0:00:53]} h4 {[%emt 0:00:00]} 43. g6 {[%emt 0:00:22]} h3 {[%emt 0:00:00]} 44. g7 {[%emt 0:00:00]} h2 {[%emt 0:00:00]} 45. g8=Q {[%emt 0:00:00]} h1=Q+ {[%emt 0:00:00]} 46. Kc2 {[%emt 0:00:00]} Qh2+ {[%emt 0:00:00]} 47. Kd1 {[%emt 0:00:00] Weighted Error Value: White=0.34/Black=0.04 (flawless)} 0-1

[Event "Italian-ch Juniors U20 2022"]
[Site "Cagliari"]
[Date "2022.11.17"]
[Round "1.4"]
[White "Bettalli, Francesco"]
[Black "Ballotti, Luca"]
[Result "1-0"]
[ECO "C11"]
[WhiteElo "2211"]
[BlackElo "2136"]
[Annotator "TA"]
[PlyCount "95"]
[EventDate "2022.11.17"]
[EventType "tourn"]
[EventCountry "ITA"]
[SourceTitle "playchess.com"]
[Source "ChessBase"]
[SourceQuality "1"]
[TimeControl "40/6000+30:20/3000:900+30"]

{[%evp 16,95,10,4,9,4,15,6,10,20,44,30,63,27,32,38,48,-55,-62,-47,0,0,8,12,2,16,11,6,12,-45,-47,-37,-45,-95,-28,-33,0,0,0,0,15,14,16,15,35,34,18,14,19,10,22,0,0,0,0,0,124,137,185,164,264,237,246,237,227,219,267,239,296,186,586,583,656,640,1308,1231,1241,1178,29967,29962,29978,29977]} 1. e4 {[%emt 0:00:14]} e6 {[%emt 0:00:07]} 2. d4 {[%emt 0:00:12]} d5 {[%emt 0:00:04]} 3. Nc3 {[%emt 0:00:09]} Nf6 {[%emt 0:00:23]} 4. e5 {[%emt 0:00:12]} Nfd7 {[%emt 0:00:08]} 5. Nce2 {[%emt 0:00:08]} c5 {[%emt 0:00:23]} 6. c3 {[%emt 0:00:06]} Nc6 {[%emt 0:02:16]} 7. f4 {[%emt 0:00:08]} Qb6 {[%emt 0:04:56]} 8. Nf3 {[%emt 0:00:46]} f6 {[%emt 0:03:45]} 9. Qb3 {[%emt 0:00:23]} Be7 {[%emt 0:12:22] C11: French: Classical System: 4 e5 and 4 Bg5 dxe4.} 10. Be3 {[%emt 0:01:30]} O-O {[%emt 0:03:43]} 11. g3 {[%emt 0:02:49]} fxe5 {[%emt 0:06:15] The position is equal.} 12. dxe5 {[%emt 0:00:47] [#]} Qc7 $146 {[%emt 0:06:18]} ({Predecessor:} 12... Qxb3 13. axb3 Ndb8 14. Nc1 b6 15. h4 a5 16. Kf2 Na6 17. Bb5 Bb7 18. Rd1 Nc7 {½-½ (51) Windhausen,G (2547)-Schmid,P (2529) GER email 2017}) 13. h4 {[%emt 0:02:36]} b5 {[%emt 0:04:18]} 14. Qc2 {[%emt 0:05:39]} (14. Qxb5 Rb8 15. Qa4 (15. Qd3 Rxb2 16. Bh3 Kh8 $11) 15... d4 16. cxd4 Rxb2 $17) (14. Bh3 $5 {[%cal Rh3e6]}) 14... d4 {[%emt 0:03:45]} 15. cxd4 {[%emt 0:07:41] Strongly threatening Ng5.} (15. Ng5 {with more complications.} g6 16. Nxe6 Qb7 17. Nxf8 Nxf8 18. Bg2) 15... Nb4 $1 {[%emt 0:00:27]} 16. Qd2 {[%emt 0:04:03]} ({White should play} 16. Qb1 $1 $14) 16... Bb7 $15 {[%emt 0:04:46][%mdl 1024] Black has compensation.} 17. Bg2 {[%emt 0:03:48] [#]} Nb6 {[%emt 0:00:42]} (17... Nxe5 $1 $15 {was preferrable.} 18. fxe5 (18. dxe5 $2 {too greedy.} Rad8 $19) 18... Bxf3) 18. b3 $1 $11 {[%emt 0:07:31]} N6d5 {[%emt 0:02:11] ...Nxe3 is the strong threat.} (18... c4 $5 {[%cal Rb6d5]}) 19. Bf2 {[%emt 0:05:23]} c4 $132 {[%emt 0:03:11][%mdl 2048] Black puts up resistance} 20. O-O $1 {[%emt 0:00:52]} c3 {[%emt 0:03:50]} 21. Qd1 {[%emt 0:00:40]} a5 {[%emt 0:02:47]} 22. Ne1 {[%emt 0:05:20]} (22. a3 $11 Na6 23. Qd3) 22... a4 {[%emt 0:05:12]} 23. bxa4 $1 {[%emt 0:08:18]} Rxa4 {[%emt 0:01:37] Hoping for ...Ra3.} 24. a3 {[%emt 0:53:15] [#]} (24. Qb3 $1 $15) 24... Rfa8 {[%emt 0:04:27]} (24... Qc4 $1 $17 {White must now prevent ...Rfa8.} 25. Nc1 (25. axb4 Rxa1) 25... c2) 25. Qb3 {[%emt 0:00:00][%cal Of4f5]} Qc4 {[%emt 0:03:43]} ({Much less strong is} 25... c2 26. f5 $16) (25... g6 {seems wilder.} 26. h5 Kg7 27. hxg6 hxg6 28. Be4 Qc4) 26. Qxc4 {[%emt 0:00:00]} bxc4 {[%emt 0:00:01]} 27. Nxc3 $1 {[%emt 0:00:00]} Nxc3 {[%emt 0:03:50]} 28. Bxb7 {[%emt 0:00:00][%cal Bg2b7,Bb7c8,Bc8f5][%mdl 32]} Rxa3 {[%emt 0:00:41]} 29. Rxa3 {[%emt 0:00:00]} Rxa3 {[%emt 0:00:03]} 30. Bc8 {[%emt 0:00:00]} Kf7 {[%emt 0:07:12]} 31. f5 {[%emt 0:00:00]} exf5 {[%emt 0:00:15]} 32. Bxf5 {[%emt 0:00:00]} g6 {[%emt 0:02:39]} 33. Nc2 {[%emt 0:00:00]} Nxc2 {[%emt 0:08:57]} 34. Bxc2 {[%emt 0:00:00]} Ke6 {[%emt 0:02:18]} 35. h5 {[%emt 0:00:00]} gxh5 {[%emt 0:01:52]} (35... Ra2 $11 36. hxg6 hxg6 37. Bxg6 Ne2+ 38. Kg2 (38. Kh1 c3 $11) 38... Nxd4) 36. Bxh7 $16 {[%emt 0:00:00]} Ne2+ {[%emt 0:00:46]} (36... Ra8 $16) 37. Kg2 {[%emt 0:00:00] Threatens to win with Bg8+.} Ra8 {[%emt 0:04:48] Against Bg8+} (37... h4 $142) 38. Re1 $18 {[%emt 0:00:00]} Nc3 {[%emt 0:03:26]} 39. Rc1 {[%emt 0:00:00] Inhibits h4.} Bb4 {[%emt 0:00:19]} 40. Rc2 {[%emt 0:00:00]} Rc8 {[%emt 0:01:11]} 41. Bg6 {[%emt 0:25:27]} h4 {[%emt 0:15:15]} 42. g4 {[%emt 0:00:00] And now Bf5+ would win.} Rh8 $2 {[%emt 0:01:12]} (42... Rg8) 43. Be1 {[%emt 0:00:00]} h3+ {[%emt 0:07:16]} 44. Kh2 {[%emt 0:00:00]} Nb5 {[%emt 0:00:55]} 45. Bxb4 {[%emt 0:00:00]} Nxd4 {[%emt 0:00:00]} 46. Rf2 {[%emt 0:00:00]} Rh6 {[%emt 0:07:02]} 47. Bf5+ {[%emt 0:00:00]} Kd5 {[%emt 0:01:55]} 48. Rd2 {[%emt 0:00:00] Weighted Error Value: White=0.14 (very precise) /Black=0.55} 1-0

[Event "Italian-ch Juniors U20 2022"]
[Site "Cagliari"]
[Date "2022.11.18"]
[Round "2.1"]
[White "Hercegovac, Neven"]
[Black "Ballotti, Luca"]
[Result "1/2-1/2"]
[ECO "C07"]
[WhiteElo "2230"]
[BlackElo "2136"]
[Annotator "TA"]
[PlyCount "108"]
[EventDate "2022.11.17"]
[EventType "tourn"]
[EventCountry "ITA"]
[SourceTitle "playchess.com"]
[Source "ChessBase"]
[SourceQuality "1"]
[TimeControl "40/6000+30:20/3000:900+30"]

{[%evp 13,108,-5,24,12,28,20,26,26,64,58,73,41,41,37,51,35,23,48,50,42,35,10,61,21,16,15,14,22,19,12,16,0,0,-2,12,14,41,41,41,42,45,47,41,44,73,73,75,60,53,56,61,0,0,0,62,68,72,19,93,55,59,59,69,47,77,0,35,33,41,54,62,0,0,0,0,0,5,0,0,0,8,0,0,0,0,0,0,0,0,0,0,0,0,0,0,0,0]} 1. e4 {[%emt 0:00:17]} e6 {[%emt 0:00:02]} 2. d4 {[%emt 0:00:10]} d5 {[%emt 0:00:02]} 3. Nd2 {[%emt 0:00:13]} c5 {[%emt 0:00:09]} 4. exd5 {[%emt 0:00:42]} Qxd5 {[%emt 0:00:11]} 5. dxc5 {[%emt 0:01:06]} Bxc5 {[%emt 0:03:55]} 6. Ngf3 {[%emt 0:00:15]} Nf6 {[%emt 0:00:57]} 7. Bc4 {[%emt 0:00:10]} Qd8 {[%emt 0:03:34]} 8. O-O {[%emt 0:00:48] C07: French Tarrasch: 3...c5, 4 Ngf3 and 4 exd5 Qxd5.} O-O {[%emt 0:00:22]} 9. Qe2 {[%emt 0:00:17]} Nc6 {[%emt 0:06:37]} 10. Ne4 {[%emt 0:02:59] White has an edge.} Nd4 {[%emt 0:06:34]} 11. Nxd4 {[%emt 0:02:19]} Bxd4 {[%emt 0:02:20]} 12. c3 {[%emt 0:09:47]} Nxe4 {[%emt 0:04:29]} 13. Qxe4 {[%emt 0:00:14]} Bf6 {[%emt 0:01:04]} 14. Bd3 {[%emt 0:00:39][%csl Gd3][%cal Re4h7] [#]} g6 {[%emt 0:00:59]} 15. Bh6 {[%emt 0:00:05]} Bg7 {[%emt 0:01:31]} 16. Bxg7 {[%emt 0:00:18]} Kxg7 {[%emt 0:00:02] [#]} 17. h4 $146 {[%emt 0:07:50]} ({Predecessor:} 17. Rae1 Qb6 18. Re3 Bd7 19. Qh4 Rae8 20. Rh3 h5 21. Qg5 Rh8 22. Qe5+ f6 23. Qe4 {0-1 (39) Charman,C-Uren,J Port Erin 1998}) 17... h5 {[%emt 0:14:24]} ({Better is} 17... Qf6 $11) 18. Rad1 {[%emt 0:00:53] White is more active.} Qf6 {[%emt 0:00:02]} 19. Rfe1 {[%emt 0:01:49]} Rb8 $1 {[%emt 0:07:13]} 20. Qe3 {[%emt 0:25:36]} b6 {[%emt 0:03:58]} 21. Qg3 {[%emt 0:01:03]} Bb7 {[%emt 0:01:23]} 22. Re5 {[%emt 0:00:31]} Rbd8 {[%emt 0:03:45]} 23. Rxh5 {[%emt 0:12:18]} Ba6 {[%emt 0:09:19] White must now prevent ...Bxd3.} 24. Rg5 {[%emt 0:02:16]} Bxd3 {[%emt 0:09:16]} 25. Rxd3 {[%emt 0:00:18]} Rxd3 {[%emt 0:00:16]} 26. Qxd3 $11 {[%emt 0:00:03][%mdl 4096] Endgame KQR-KQR} Rd8 {[%emt 0:00:31]} 27. Qe2 {[%emt 0:06:50]} Qf4 {[%emt 0:01:30]} 28. Rg4 {[%emt 0:08:25]} Qc1+ {[%emt 0:02:45]} 29. Kh2 {[%emt 0:00:16] aiming for Qe5+.} Rd5 {[%emt 0:01:30] Prevents Qe5+.} 30. a3 {[%emt 0:10:47]} Qd2 {[%emt 0:05:07]} 31. Re4 {[%emt 0:01:43]} Qc1 {[%emt 0:00:28]} 32. Rc4 {[%emt 0:05:59]} Qd2 {[%emt 0:01:34]} 33. Re4 {[%emt 0:01:13]} Qc1 $1 {[%emt 0:00:01]} 34. Rb4 {[%emt 0:00:21]} Kg8 {[%emt 0:01:16]} 35. Qe3 {[%emt 0:01:49]} (35. a4 $16) 35... Qf1 {[%emt 0:05:15]} (35... Qxe3 $11 36. fxe3 Rd3) 36. Rd4 {[%emt 0:01:10]} Rxd4 $1 {[%emt 0:02:11]} 37. cxd4 $14 {[%emt 0:00:40] KQ-KQ} Qd1 {[%emt 0:02:32]} 38. g3 {[%emt 0:01:30]} Qc2 {[%emt 0:02:30] [#]} 39. b4 {[%emt 0:00:05]} (39. b3 $1 $16) 39... Qb2 {[%emt 0:02:07]} 40. Kg2 {[%emt 0:00:29]} Qa1 {[%emt 0:01:41]} 41. g4 {[%emt 0:54:41]} Qd1 {[%emt 0:53:18]} 42. Qe4 {[%emt 0:00:00]} ({White should try} 42. f3 $1 $14) 42... Kg7 $11 {[%emt 0:00:00] The position is equal.} 43. Qe5+ {[%emt 0:00:00]} Kg8 {[%emt 0:00:00]} 44. Qf4 {[%emt 0:00:00]} Kg7 {[%emt 0:00:00]} 45. Qe4 {[%emt 0:00:00]} Kg8 {[%emt 0:00:00]} 46. Qf4 {[%emt 0:00:00]} Kg7 {[%emt 0:00:00]} 47. Qe5+ {[%emt 0:00:00]} Kg8 {[%emt 0:00:00]} 48. f3 {[%emt 0:00:00]} Qd2+ {[%emt 0:00:00]} 49. Kg3 {[%emt 0:00:00]} Qc1 {[%emt 0:00:00]} 50. h5 {[%emt 0:00:00] Strongly threatening hxg6.} g5 {[%emt 0:00:00]} 51. Kf2 {[%emt 0:00:00] And now Qe3 would win.} Qd2+ {[%emt 0:00:00]} 52. Kf1 {[%emt 0:00:00]} Qd1+ {[%emt 0:00:00]} 53. Kf2 {[%emt 0:00:00]} Qd2+ {[%emt 0:00:00]} 54. Kf1 {[%emt 0:00:00]} Qd1+ {[%emt 0:00:00] Weighted Error Value: White=0.12 (very precise) /Black=0.09 (flawless)} 1/2-1/2